Cogmind - Beta 14 @@@ ROGUE MODE // 2024.10.11 @ 18:02:42 Player: Glitch Artist Result: Destroyed by Y-45 Defender with Heavy Assault Rifle Performance ------------- Evolutions (1) 500 Regions Visited (2) 400 Robots Destroyed (50) 250 Value Destroyed (1050) 1050 Prototype IDs (1) 20 Alien Tech Used (0) 0 Bonus (73) 73 TOTAL SCORE: 2293 Bonus ------- High Alert Combat Kills 73 Cogmind --------- Core Integrity 0/400 Matter 15/500 Energy 100/100 System Corruption 8% Temperature Cool (9) Movement Core (1450) Ox28 Location -9/Materials Parts ------- > --- POWER (1) -------- (None) > --- PROPULSION (3) --- (None) > --- UTILITY (3) ------ Huge Storage Unit High-capacity Matter Pod > --- WEAPON (2) ------- Mini Grenade Launcher Mini Grenade Launcher > --- INVENTORY (25) --- Ion Engine Heavy Ion Engine Flight Unit Heat Sink Large Battery (200) Mini Grenade Launcher Mini Grenade Launcher Peak State ------------ > --- POWER ------------ Improved Ion Engine > --- PROPULSION ------- Airjet Airjet Airjet > --- UTILITY ---------- Small Storage Unit Large Battery Improved Light Armor Plating > --- WEAPON ----------- Minigun Mini Grenade Launcher > --- INVENTORY -------- Heavy Ion Engine Heavy Ion Engine Airjet Heat Sink High-capacity Matter Pod Utility Shielding Mini Grenade Launcher Mini Grenade Launcher [Rating: 22] Favorites ----------- Power Heavy Ion Engine Engine Heavy Ion Engine Propulsion Airjet Wheel Wheel Hover Unit Airjet Flight Unit VTOL Module Utility High-capacity Matter Pod Device Heat Sink Storage High-capacity Matter Pod Protection Medium Armor Plating Weapon Mini Grenade Launcher Energy Gun Medium Laser Energy Cannon Light EM Pulse Cannon Ballistic Gun Minigun Launcher Mini Grenade Launcher Build | -11 -10 -9 ------- Run | Yrd Mat Mat Slots Evolved 2 | . . 2 Power . | . . . Propulsion 1 | . . 1 Utility 1 | . . 1 Weapon . | . . . Parts Attached 34 | 7 5 22 Power 3 | 1 . 2 Engine 3 | 1 . 2 Core . | . . . Reactor . | . . . Propulsion 14 | 3 2 9 Treads . | . . . Leg . | . . . Wheel 3 | 3 . . Hover 8 | . 2 6 Flight 3 | . . 3 Utility 9 | 1 3 5 Device 2 | . 1 1 Storage 5 | 1 2 2 Processor . | . . . Hackware . | . . . Protection 2 | . . 2 Artifact . | . . . Weapon 8 | 2 . 6 Energy Gun 2 | 2 . . Energy Cannon 1 | . . 1 Ballistic Gun 1 | . . 1 Ballistic Cannon . | . . . Launcher 4 | . . 4 Special Weapon . | . . . Impact Weapon . | . . . Slashing Weapon . | . . . Piercing Weapon . | . . . Special Melee Weapon . | . . . Unidentified Prototypes 1 | . . 1 Parts Lost 11 | . . 11 Power 1 | . . 1 Propulsion 7 | . . 7 Utility 2 | . . 2 Weapon 1 | . . 1 Highest Loss Streak 3 | . . 3 To Critical Strikes . | . . . Average Slot Usage (%) 91 | . 99 88 Engine 11 | . 14 10 Wheel 1 | . 7 . Hover 18 | . 20 18 Flight 4 | . . 5 Device 1 | . 1 . Storage 22 | . 25 22 Protection 7 | . . 9 Energy Gun 7 | . 28 1 Launcher 14 | . . 18 Peak Build Rating 22 | 6 7 22 Average Rating 13 | 4 6 16 On Entrance 4 | . 6 7 Naked Turns . | . . . Heaviest Build 101 | 14 17 101 Greatest Support 26 | 26 20 24 Greatest Overweight (x) 25 | . 1 25 Average Overweight (x) 1 | . . 2 Largest Inventory Capacity 25 | 8 8 25 Average Capacity 13 | 5 8 15 Most Carried 8 | 4 6 8 Average Carried 6 | 1 4 6 Final Capacity 25 | 8 8 25 Final Carried 7 | 1 6 7 Class Distribution -------------------- 100% | Mutant Dominant Class ---------------- Mutant | -10/Materials Mutant | -9/Materials Resources | -11 -10 -9 ----------- Run | Yrd Mat Mat Matter Collected 733 | 270 24 439 Remotely . | . . . Salvage Created 1061 | 148 73 840 Parts 88 | 10 5 73 Haulers Intercepted . | . . . Recyclers Shooed 2 | 1 . 1 Parts Field Recycled . | . . . Retrieved Matter . | . . . Parts Self-Destructed . | . . . Prevented . | . . . Kills | -11 -10 -9 ------- Run | Yrd Mat Mat Combat Hostiles Destroyed 22 | . . 22 Guns 2 | . . 2 Cannons 4 | . . 4 AOE 16 | . . 16 Classes Destroyed 10 | 2 2 6 Worker 4 | . . 4 Builder 4 | . . 4 Tunneler 6 | 5 . 1 Recycler 4 | 1 . 3 Mechanic 2 | . . 2 Operator 2 | . 1 1 Watcher 6 | . 2 4 Swarmer 4 | . . 4 Grunt 13 | . . 13 Sentry 5 | . . 5 Best Kill Streak 16 | 6 1 16 Combat Bots Only 5 | . . 5 Max Kills in Single Turn 6 | 1 1 6 Gunslinging . | . . . Exploded 2 | . . 2 Melee . | . . . Uniques/NPCs Destroyed . | . . . Combat | -11 -10 -9 -------- Run | Yrd Mat Mat Hostile Shots Fired 111 | . 9 102 Missed 41 | . 5 36 Damage Taken 1605 | . 53 1552 Core 426 | . 14 412 Absorbed by Shields . | . . . Core Remaining (%) 97 | 100 94 . Volleys Fired 60 | 9 7 44 Largest 2 | 2 2 2 Hottest 106 | 100 100 106 Shots Fired 120 | 18 13 89 Gun 66 | 18 13 35 Cannon 15 | . . 15 Launcher 39 | . . 39 Special . | . . . Kinetic 22 | . . 22 Thermal 44 | 18 13 13 Explosive 39 | . . 39 Electromagnetic 15 | . . 15 Robot Hit Streak 23 | 9 10 23 Robot Miss Streak 2 | 1 1 2 Penetration Max . | . . . Secondary Targets . | . . . Shots Hit Robots 81 | 13 9 59 Core Hits 78 | 7 4 67 Critical Kills . | . . . Critical Parts Destroyed 1 | . . 1 Critical Strikes 3 | 2 . 1 Burn 2 | 2 . . Destroy 1 | . . 1 Melee Attacks . | . . . Impact . | . . . Slashing . | . . . Piercing . | . . . Sneak Attacks . | . . . Combat Hostiles . | . . . Follow-up Attacks . | . . . Damage Inflicted 3545 | 163 116 3266 Guns 620 | 163 115 342 Cannons 280 | . . 280 Explosions 2643 | . . 2643 Melee . | . . . Ramming 2 | . 1 1 Kinetic 200 | . . 200 Thermal 496 | 163 115 218 Explosive 2567 | . . 2567 Electromagnetic 280 | . . 280 Impact . | . . . Slashing . | . . . Piercing . | . . . Highest Corruption 8 | . . 8 Average Corruption 7 | . . 7 Corruption Purged . | . . . Corruption Blocked . | . . . Effects 34 | . . 34 Message Errors 6 | . . 6 Matter Fused 8 | . . 8 Heat Flow Errors 5 | . . 5 Energy Discharges 3 | . . 3 Parts Rejected 1 | . . 1 Data Loss (minor) 6 | . . 6 Data Loss (major) 2 | . . 2 Misfires 2 | . . 2 Alerts 1 | . . 1 Overload Shots . | . . . Overflow Damage 68 | . . 68 Projectiles . | . . . Explosions 68 | . . 68 Melee . | . . . Knockbacks 1 | . . 1 Impact 1 | . . 1 Kinetic . | . . . Secondary . | . . . Self-Inflicted Damage 330 | . . 330 Shots 11 | . . 11 Rammed 2 | . 1 1 Targets Rammed 2 | . 1 1 Kicked . | . . . Crushed . | . . . Highest Temperature 234 | 234 78 227 Average Temperature 49 | 91 27 43 Received Heat Transfer 393 | . 30 363 Siege Activations . | . . . Robots Corrupted . | . . . Combat Hostiles . | . . . Parts Fried . | . . . Impact Corruptions . | . . . Robots Melted . | . . . Combat Hostiles . | . . . Parts Melted 4 | 2 . 2 Heat Transferred 1469 | 629 333 507 Parts Sabotaged . | . . . Parts Stolen . | . . . Parts Stripped . | . . . Power Chain Reactions 2 | . . 2 Alert | -11 -10 -9 ------- Run | Yrd Mat Mat Peak Influence 588 | 30 100 588 Initial 19 | . 19 . Average 279 | 12 48 359 Maximum Alert Level 2 | . . 2 Low Security (%) 37 | 100 100 15 Level 1 21 | . . 28 Level 2 41 | . . 55 Level 3 . | . . . Level 4 . | . . . Level 5 . | . . . High Security . | . . . Max Security . | . . . Squads Dispatched 4 | . . 4 Investigation 1 | . . 1 Extermination . | . . . Reinforcement 3 | . . 3 Assault . | . . . Garrison . | . . . Intercept . | . . . Searches Triggered . | . . . Construction Impeded 1 | . . 1 Haulers Reinforced . | . . . Active Scanning Responses . | . . . Cargo Convoy Interrupts . | . . . Stealth | -11 -10 -9 --------- Run | Yrd Mat Mat Distress Signals . | . . . Communications Jammed . | . . . Distress Signals . | . . . Times Spotted 38 | . 6 32 Peak Tracking Total 10 | . 2 10 Tactical Retreats 2 | . . 2 Traps | -11 -10 -9 ------- Run | Yrd Mat Mat Traps Triggered . | . . . Indirectly . | . . . Trap Hack Attempts . | . . . Triggered . | . . . Disarmed . | . . . Reprogrammed . | . . . Reused . | . . . Traps Extracted . | . . . Installed . | . . . Triggered . | . . . Machines | -11 -10 -9 ---------- Run | Yrd Mat Mat Machines Disabled 6 | . . 6 Max in Single Turn 1 | . . 1 Machines Repaired . | . . . Machines Dismantled . | . . . Machines Sabotaged . | . . . Overloaded Fab Kills . | . . . Hacking | -11 -10 -9 --------- Run | Yrd Mat Mat Machines Accessed 9 | . 5 4 Terminals 7 | . 4 3 Fabricators . | . . . Repair Stations . | . . . Recycling Units 2 | . 1 1 Scanalyzers . | . . . Garrison Access . | . . . Total Hacks 28 | . 14 14 Successful 14 | . 6 8 Failed 14 | . 8 6 Catastrophic 5 | . 2 3 Database Lockouts . | . . . Manual 6 | . 5 1 Terminals 20 | . 9 11 Fabricators . | . . . Repair Stations . | . . . Recycling Units 8 | . 5 3 Scanalyzers . | . . . Garrison Access . | . . . Terminal Hacks 10 | . 4 6 Record 1 | . 1 . Emergency Access Points 1 | . . 1 Recycling Unit Index 1 | . . 1 Scanalyzer Index 1 | . 1 . Unreport Threat 1 | . . 1 Locate Traps 1 | . 1 . Maintenance Status 1 | . . 1 Registered Components 1 | . . 1 Zone Layout 2 | . 1 1 Fabricator Hacks . | . . . Repair Station Hacks . | . . . Recycling Unit Hacks 4 | . 2 2 Report Inventory 3 | . 1 2 Retrieve Components 1 | . 1 . Scanalyzer . | . . . Garrison Access Hacks . | . . . Unauthorized Hacks . | . . . Terminals . | . . . Fabricators . | . . . Repair Stations . | . . . Recycling Units . | . . . Scanalyzers . | . . . Garrison Access . | . . . Data Cores Recovered 1 | . 1 . Used . | . . . Hacking Detections 8 | . 5 3 Full Trace Events 3 | . 1 2 Feedback Events 1 | . . 1 Corruption 1 | . . 1 Feedback Blocked . | . . . Robot Schematics Acquired . | . . . Robots Built . | . . . Authchips . | . . . Time . | . . . Total Robot Build Rating . | . . . Part Schematics Acquired . | . . . Parts Built . | . . . Authchips . | . . . Time . | . . . Total Part Build Rating . | . . . Parts Repaired . | . . . Time . | . . . Parts Recycled . | . . . Recycled Matter . | . . . Retrieved Matter . | . . . Retrieved Components 3 | . 3 . Parts Scanalyzed . | . . . Part Schematics Acquired . | . . . Parts Damaged . | . . . Bothacking | -11 -10 -9 ------------ Run | Yrd Mat Mat Used RIF Installer . | . . . Robots Hacked . | . . . Non-combat . | . . . Combat . | . . . Robot Hacks Applied . | . . . Relay Couplers Released . | . . . Fabnet Peak Effective % . | . . . Robots Rewired . | . . . Allies Hacked . | . . . Hacks Repelled . | . . . Allies | -11 -10 -9 -------- Run | Yrd Mat Mat Total Allies . | . . . Largest Group . | . . . Highest-Rated Group . | . . . Highest-Rated Ally . | . . . Total Orders . | . . . Ally Attacks . | . . . Total Damage . | . . . Kills . | . . . Allies Corrupted . | . . . Allies Melted . | . . . Intel | -11 -10 -9 ------- Run | Yrd Mat Mat Robot Analysis Total . | . . . Derelict Logs Recovered . | . . . Drone Launches . | . . . Drone Recoveries . | . . . Exploration | -11 -10 -9 ------------- Run | Yrd Mat Mat Turns Passed 2412 | 97 515 1800 Spaces Moved 1313 | 67 457 789 Core 30 | 12 . 18 Treads . | . . . Legs . | . . . Wheels 193 | 55 138 . Hover 1052 | . 319 733 Flight 38 | . . 38 Fastest Speed 50 | 50 80 52 Average Speed 164 | 80 105 206 Slowest Speed 2035 | 90 116 2035 Overloaded Moves . | . . . Propulsion Burnouts . | . . . Robots Hopped . | . . . Cave-ins Triggered 1 | . . 1 Exploration Rate (%) 36 | 4 58 47 Regions Visited 2 Branch Regions . Pre-discovered Areas . | . . . Known Exits Taken . | . . . Unknown Exits Taken 2 | 1 1 . Scrap Searched . | . . . Spaces Dug . | . . . Terrain Destroyed 266 | . . 266 Melee . | . . . Projectile . | . . . AOE 266 | . . 266 Terrain Rammed . | . . . Walls Destroyed . | . . . Machines Disabled . | . . . Actions | -11 -10 -9 --------- Run | Yrd Mat Mat Total 1468 | 91 477 900 Wait 2 | . . 2 Move 1311 | 66 456 789 Hop . | . . . Pick Up 40 | 8 7 25 Fast Attach 1 | . . 1 Attach 17 | 6 1 10 Detach . | . . . Swap 16 | 1 4 11 Drop 19 | 1 1 17 Fire 60 | 9 7 44 Melee . | . . . Ram 2 | . 1 1 Kick . | . . . Crush . | . . . Escape Stasis . | . . . Rewire . | . . . Trap . | . . . Miscellaneous . | . . . Route ------- -11/Scrapyard -10/Materials (discovered 2 exits: *Mat / [*Min]) -9/Materials (discovered 1 exit: [*Min]) History --------- Turn | Location | Event 3 | -11/Scrapyard | Discovered new exit (range 16) 98 | -11/Scrapyard | Entered Materials 308 | -10/Materials | Build established: Mutant 326 | -10/Materials | Discovered new exit (range 9) 427 | -10/Materials | Discovered new exit (range 8) 613 | -10/Materials | Entered another Materials area 613 | -9/Materials | Evolved 2 slots: Propulsion x1, Utility x1 945 | -9/Materials | Crushed by falling debris 945 | -9/Materials | Core integrity fell below 50% 979 | -9/Materials | Lost 3 parts (1p1n1w) 1458 | -9/Materials | Discovered new exit (range 6) 2375 | -9/Materials | Core integrity fell below 20% 2413 | -9/Materials | Destroyed by Y-45 Defender with Heavy Assault Rifle Last Messages --------------- Mni. Grenade Launcher. 01946_ System corrupted: Heat flow error (+210). 01967_ FYGK/Y&3A|L V08E/NVH &Z|1DLB= 01999_ System corrupted: Component data lost. 02023_ VJSBIIM=ILLCUC MB:Y0YFLK&MM&82 02066_ System corrupted: FCS attempts to trigger Mni. Grenade Launcher. 02127_ System corrupted: Energy discharge (-106). 02246_ System corrupted: FCS attempts to trigger Mni. Grenade Launcher. 02338_ HTHTXTPHKZ%VS,U70LV%C5Q2 02369_ System corrupted: IFF burst signal emitted. 02377_ Airjet destroyed. 02380_ Critical hit (Burn: +37). 02397_ System corrupted: Hvy. Ion Engine rejected. 02401_ Med. Armor Plating destroyed. 02413_ VTOL Module destroyed. Map ----- +----------------------------------------------------+ | | | | | | | | | | | | | ?????????????????????????????????????????????????? | | ?????????????????????##########??????????????????? | | ?????????????????????#= #??????????????????? | | ?????????????????????# #??????????????????? | | ?????????????????????# #??????????????????? | | ?????????????????????# #??????????????????? | | ?????????????????????# #??????????????????? | | ?????????????????????# #########??????????? | | ?????????????????????# ## ]! #??????????? | | ?????????????????????# ## !! #??????????? | | ?????????????????????# ## !! #??????????? | | ????????########?????#+###+##### #??????????? | | ????????# = #?????# + #??????????? | | ????????# ####### # #??????????? | | ????????# + ########??????????? | | ????????# """ ########## #?????????????????? | | ????????# """ #????????# ##+########??????????? | | ????????# """ #????????# # #??????????? | | ????????########????????#* # #??????????? | | ????????????????????????#@ # #??????????? | | ????????????????????????# # #??????????? | | ????????????????????????#Y # #??????????? | | ????????????????????????+ # #???#??????? | | ????????????????????????# # #?? #????? | | ????????????????????????# # #? #????? " | | ????????????????????##### #####+##### #????# " | | ?????????????????? #????# " | | ?????????????????? #????# | | ?????????????????? #????# " | | ???????????????????###### ######+#########???# " | | ????????????????????????# #????# ##### " | | ????????????????????????# #????# + + | | ????????????????????????? #????# #### ## | | ????????????????????????? k#????# """ """ ### | | ????????????????????????? ????# """ """ # " | | ????????????????????????????????## """ """ # " | | ?????????????????????????????????# # | | ?????????????????????????????????# # | | ?????????????????????????????????####+###### | | ??????????????????????????????????? ###### | | ??????????????????????????????????? | | ??????????????????????????????????? ! ^ | | ??????????????????????????????????? %=% % | | ???????????????????????????????????? ########## | +----------------------------------------------------+ Best States ------------- Heat Dissipation 38 Energy Generation 14 Energy Capacity 450 Matter Stores 391 Matter Capacity 500 Sight Range 16 Terrain Scan Density 10 Armor Coverage 225 Evasion (%) 54 Item Schematics ----------------- None Robot Schematics ------------------ None Fabricated ------------ Nothing Alien Tech Used ----------------- None Achievements -------------- Maybe Next Time I'll Detach My Launcher Challenges ------------ None Game ------ Seed PiercingShockStatue Manual? 0 Play Time 00:22:11 Cumulative 4.0 hours Start 2024.10.11 @ 17:41:19 End 2024.10.11 @ 18:02:42 Sessions 1 Manual Loads 0 Difficulty Rogue Special Mode None Game No. 5 Rogue 3 Adventurer 0 Explorer 2 Win Type - Total 0 Types 0/0/0/0/0/0/0/0/0 Lore% 2 Gallery% 11 Achievement% 14 Wizard Run 0 Options --------- Layout 1 ASCII 0 Keyboard 0 Movement Arrows Keybinds 0 Fullscreen 2 Font 24/X11 Map View 50x35 Zoom Use 0% Tactical HUD 1 Map Filters NONE Filters NONE Steam 1 RUN: 9d3550c9-cf67-4cbe-8ea7-de5c7e43457a